fUSD/lending_fUSD_20250611
["ID","MTS","AMOUNT","RATE_DAILY","PERIOD"]
[365417008,1749660651636,-490.0,0.00019506,2]
[365417009,1749660651646,-396.902951,0.00019506,2]
[365417010,1749660651656,-490.0,0.00019506,2]
[365417011,1749660651666,-490.0,0.00019506,2]
[365417012,1749660651676,-363.21366376,0.00019506,2]
[365417013,1749660651686,-490.0,0.00019506,2]
[365417014,1749660651696,-490.0,0.00019506,2]
[365417015,1749660651706,-490.0,0.00019506,2]
[365417016,1749660651717,-19269.08380873,0.00019506,2]
[365417017,1749660651727,-490.0,0.00019506,2]
[365417018,1749660651737,-490.0,0.00019506,2]
[365417019,1749660651747,-490.0,0.00019506,2]
[365417020,1749660651757,-490.0,0.00019506,2]
[365417021,1749660651767,-490.0,0.00019506,2]
[365417022,1749660651777,-490.0,0.00019506,2]
[365417023,1749660651786,-490.0,0.00019506,2]
[365417024,1749660651796,-567.39,0.00019506,2]
[365417025,1749660651806,-490.0,0.00019506,2]
[365417026,1749660651816,-490.0,0.00019506,2]
[365417027,1749660651826,-490.0,0.00019506,2]
[365417028,1749660651836,-490.0,0.00019506,2]
[365417029,1749660651846,-490.0,0.00019506,2]
[365417030,1749660651855,-490.0,0.00019506,2]
[365417031,1749660651865,-490.0,0.00019506,2]
[365417032,1749660651875,-490.0,0.00019506,2]
[365417033,1749660651885,-490.0,0.00019506,2]
[365417034,1749660651895,-490.0,0.00019506,2]
[365417035,1749660651904,-501.07,0.00019506,2]
[365417036,1749660651914,-490.0,0.00019506,2]
[365417037,1749660651924,-552.61,0.00019506,2]
[365417038,1749660651934,-490.0,0.00019506,2]
[365417039,1749660651943,-490.0,0.00019506,2]
[365417040,1749660651953,-490.0,0.00019506,2]
[365417041,1749660651965,-490.0,0.00019506,2]
[365417042,1749660651974,-490.0,0.00019506,2]
[365417043,1749660651984,-490.0,0.00019506,2]
[365417044,1749660651993,-490.0,0.00019506,2]
[365417045,1749660652003,-490.0,0.00019506,2]
[365417046,1749660652013,-490.0,0.00019506,2]
[365417047,1749660652022,-787.58,0.00019506,2]
[365417048,1749660652032,-490.0,0.00019506,2]
[365417049,1749660652042,-490.0,0.00019506,2]
[365417050,1749660652058,-490.0,0.00019506,2]
[365417051,1749660652071,-324.7759702,0.00019506,2]
[365417052,1749660652081,-490.0,0.00019506,2]
[365417053,1749660652091,-490.0,0.00019506,2]
[365417054,1749660652102,-490.0,0.00019506,2]
[365417055,1749660652111,-490.0,0.00019506,2]
[365417056,1749660652122,-600.66,0.00019506,2]
[365417057,1749660652131,-490.0,0.00019506,2]
[365417058,1749660652141,-490.0,0.00019506,2]
[365417059,1749660652151,-473.35124361,0.00019506,2]
[365417060,1749660652160,-490.0,0.00019506,2]
[365417061,1749660652170,-490.0,0.00019506,2]
[365417062,1749660652180,-490.0,0.00019506,2]
[365417063,1749660652190,-490.0,0.00019506,2]
[365417064,1749660652200,-559.83,0.00019506,2]
[365417065,1749660652210,-240.0,0.00019506,2]
[365417066,1749660652219,-490.0,0.00019506,2]
[365417067,1749660652229,-490.0,0.00019506,2]
[365417068,1749660652239,-490.0,0.00019506,2]
[365417069,1749660652250,-490.0,0.00019506,2]
[365417070,1749660652261,-490.0,0.00019506,2]
[365417071,1749660652271,-490.0,0.00019506,2]
[365417072,1749660652280,-490.0,0.00019506,2]
[365417073,1749660652291,-490.0,0.00019506,2]
[365417074,1749660652302,-532.47,0.00019506,2]
[365417075,1749660652313,-490.0,0.00019506,2]
[365417076,1749660652323,-490.0,0.00019506,2]
[365417077,1749660652333,-490.0,0.00019506,2]
[365417078,1749660652342,-490.0,0.00019506,2]
[365417079,1749660652352,-490.0,0.00019506,2]
[365417080,1749660652363,-880.05,0.00019506,2]
[365417081,1749660652375,-490.0,0.00019506,2]
[365417082,1749660652385,-490.0,0.00019506,2]
[365417083,1749660652395,-440.0,0.00019506,2]
[365417084,1749660652405,-490.0,0.00019506,2]
[365417085,1749660652415,-490.0,0.00019506,2]
[365417086,1749660652424,-795.36,0.00019506,2]
[365417087,1749660652435,-547.48,0.00019506,2]
[365417088,1749660652445,-553.1,0.00019506,2]
[365417089,1749660652455,-490.0,0.00019506,2]
[365417090,1749660652466,-490.0,0.00019506,2]
[365417091,1749660652476,-490.0,0.00019506,2]
[365417092,1749660652486,-490.0,0.00019506,2]
[365417093,1749660652496,-1017.09,0.00019506,2]
[365417094,1749660652506,-706.31,0.00019506,2]
[365417095,1749660652516,-490.0,0.00019506,2]
[365417096,1749660652654,-490.0,0.00019506,2]
[365417097,1749660652663,-490.0,0.00019506,2]
[365417098,1749660652673,-490.0,0.00019506,2]
[365417099,1749660652682,-490.0,0.00019506,2]
[365417100,1749660652692,-504.65,0.00019506,2]
[365417101,1749660652701,-490.0,0.00019506,2]
[365417102,1749660652711,-490.0,0.00019506,2]
[365417103,1749660652724,-490.0,0.00019506,2]
[365417104,1749660652734,-490.0,0.00019506,2]
[365417105,1749660652743,-490.0,0.00019506,2]
[365417106,1749660652753,-490.0,0.00019506,2]
[365417107,1749660652762,-1001.14,0.00019506,2]
[365417108,1749660652772,-1022.13,0.00019506,2]
[365417109,1749660652781,-781.4,0.00019506,2]
[365417110,1749660652791,-490.0,0.00019506,2]
[365417111,1749660652800,-567.32338929,0.00019506,2]
[365417112,1749660652810,-490.0,0.00019506,2]
[365417113,1749660652819,-490.0,0.00019506,2]
[365417114,1749660652829,-651.77,0.00019506,2]
[365417115,1749660652838,-490.0,0.00019506,2]
[365417116,1749660652847,-490.0,0.00019506,2]
[365417117,1749660652856,-738.41,0.00019506,2]
[365417118,1749660652866,-529.38,0.00019506,2]
[365417119,1749660652875,-490.0,0.00019506,2]
[365417120,1749660652885,-490.0,0.00019506,2]
[365417121,1749660652894,-490.0,0.00019506,2]
[365417122,1749660652904,-875.41,0.00019506,2]
[365417123,1749660652914,-490.0,0.00019506,2]
[365417124,1749660652923,-490.0,0.00019506,2]
[365417125,1749660652933,-490.0,0.00019506,2]
[365417126,1749660652942,-490.0,0.00019506,2]
[365417127,1749660652951,-490.0,0.00019506,2]
[365417128,1749660652960,-490.0,0.00019506,2]
[365417129,1749660652969,-496.29,0.00019506,2]
[365417130,1749660652979,-490.0,0.00019506,2]
[365417131,1749660652988,-565.59526738,0.00019506,2]
[365417132,1749660652997,-490.0,0.00019506,2]
[365417133,1749660653007,-490.0,0.00019506,2]
[365417134,1749660653016,-526.23,0.00019506,2]
[365417135,1749660653026,-490.0,0.00019506,2]
[365417136,1749660653035,-490.0,0.00019506,2]
[365417137,1749660653044,-490.0,0.00019506,2]
[365417138,1749660653053,-610.84,0.00019506,2]
[365417139,1749660653063,-598.89794639,0.00019506,2]
[365417140,1749660653072,-490.0,0.00019506,2]
[365417141,1749660653083,-490.0,0.00019506,2]
[365417142,1749660653092,-542.93,0.00019506,2]
[365417143,1749660653101,-490.0,0.00019506,2]
[365417144,1749660653111,-187.12834119,0.00019506,2]
[365417145,1749660653121,-1076.9,0.00019506,2]
[365417146,1749660653130,-428.37236452,0.00019506,2]
[365417147,1749660653140,-490.0,0.00019506,2]
[365417148,1749660653149,-490.0,0.00019506,2]
[365417149,1749660653159,-490.0,0.00019506,2]
[365417150,1749660653169,-841.76,0.00019506,2]
[365417151,1749660653178,-490.0,0.00019506,2]
[365417152,1749660653188,-490.0,0.00019506,2]
[365417153,1749660653197,-490.0,0.00019506,2]
[365417154,1749660653207,-490.0,0.00019506,2]
[365417155,1749660653218,-154.06062933,0.00019506,2]
[365417156,1749660653228,-490.0,0.00019506,2]
[365417157,1749660653238,-490.0,0.00019506,2]
[365417158,1749660653248,-490.0,0.00019506,2]
[365417159,1749660653258,-490.0,0.00019506,2]
[365417160,1749660653271,-490.0,0.00019506,2]
[365417161,1749660653281,-490.0,0.00019506,2]
[365417162,1749660653293,-430.0,0.00019506,2]
[365417163,1749660653304,-610.24,0.00019506,2]
[365417164,1749660653314,-399.95527514,0.00019506,2]
[365417165,1749660653324,-490.0,0.00019506,2]
[365417166,1749660653334,-490.0,0.00019506,2]
[365417167,1749660653345,-490.0,0.00019506,2]
[365417168,1749660653355,-490.0,0.00019506,2]
[365417169,1749660653364,-490.0,0.00019506,2]
[365417170,1749660653376,-490.0,0.00019506,2]
[365417171,1749660653386,-490.0,0.00019506,2]
[365417172,1749660653396,-490.0,0.00019506,2]
[365417173,1749660653406,-490.0,0.00019506,2]
[365417174,1749660653416,-490.0,0.00019506,2]
[365417175,1749660653427,-490.0,0.00019506,2]
[365417176,1749660653438,-1368.39,0.00019506,2]
[365417177,1749660653449,-490.0,0.00019506,2]
[365417178,1749660653459,-564.27,0.00019506,2]
[365417179,1749660653472,-589.3,0.00019506,2]
[365417180,1749660653483,-490.0,0.00019506,2]
[365417181,1749660653493,-490.0,0.00019506,2]
[365417182,1749660653504,-490.0,0.00019506,2]
[365417183,1749660653515,-490.0,0.00019506,2]
[365417184,1749660653527,-490.0,0.00019506,2]
[365417185,1749660653538,-703.44,0.00019506,2]
[365417186,1749660653549,-490.0,0.00019506,2]
[365417187,1749660653559,-501.05,0.00019506,2]
[365417188,1749660653571,-493.75,0.00019506,2]
[365417189,1749660653582,-490.0,0.00019506,2]
[365417190,1749660653593,-490.0,0.00019506,2]
[365417191,1749660653604,-490.0,0.00019506,2]
[365417192,1749660653615,-490.0,0.00019506,2]
[365417193,1749660653626,-605.8,0.00019506,2]
[365417194,1749660653637,-490.0,0.00019506,2]
[365417195,1749660653649,-490.0,0.00019506,2]
[365417196,1749660653660,-1108.7,0.00019506,2]
[365417197,1749660653671,-490.0,0.00019506,2]
[365417198,1749660653681,-490.0,0.00019506,2]
[365417199,1749660653692,-490.0,0.00019506,2]
[365417200,1749660653703,-250.0,0.00019506,2]
[365417201,1749660653713,-490.0,0.00019506,2]
[365417202,1749660653725,-490.0,0.00019506,2]
[365417203,1749660653736,-490.0,0.00019506,2]
[365417204,1749660653747,-490.0,0.00019506,2]
[365417205,1749660653758,-490.0,0.00019506,2]
[365417206,1749660653769,-490.0,0.00019506,2]
[365417207,1749660653780,-196.78537358,0.00019506,2]
[365417208,1749660653791,-587.47,0.00019506,2]
[365417209,1749660653802,-185.86,0.00019506,2]
[365417210,1749660653814,-490.0,0.00019506,2]
[365417211,1749660653825,-490.0,0.00019506,2]
[365417212,1749660653835,-490.0,0.00019506,2]
[365417213,1749660653846,-1252.39,0.00019506,2]
[365417214,1749660653856,-457.95957704,0.00019506,2]
[365417215,1749660653867,-490.0,0.00019506,2]
[365417216,1749660653877,-2427.27,0.00019506,2]
[365417217,1749660653888,-490.0,0.00019506,2]
[365417218,1749660653899,-490.46,0.00019506,2]
[365417219,1749660653910,-1069.63,0.00019506,2]
[365417220,1749660653920,-490.0,0.00019506,2]
[365417221,1749660653931,-490.0,0.00019506,2]
[365417222,1749660653943,-1490.84,0.00019506,2]
[365417223,1749660653954,-562.85366019,0.00019506,2]
[365417224,1749660653965,-490.0,0.00019506,2]
[365417225,1749660653975,-490.0,0.00019506,2]
[365417226,1749660653986,-490.0,0.00019506,2]
[365417227,1749660653997,-1929.27,0.00019506,2]
[365417228,1749660654007,-490.0,0.00019506,2]
[365417229,1749660654019,-903.73,0.00019506,2]
[365417230,1749660654030,-490.0,0.00019506,2]
[365417231,1749660654040,-2370.05,0.00019506,2]
[365417232,1749660654051,-751.31,0.00019506,2]
[365417233,1749660654062,-490.0,0.00019506,2]
[365417234,1749660654073,-4168.24,0.00019506,2]
[365417235,1749660654084,-490.0,0.00019506,2]
[365417236,1749660654094,-490.0,0.00019506,2]
[365417237,1749660654105,-617.74,0.00019506,2]
[365417238,1749660654116,-490.0,0.00019506,2]
[365417239,1749660654128,-2151.44,0.00019506,2]
[365417240,1749660654139,-530.23,0.00019506,2]
[365417241,1749660654150,-630.67,0.00019506,2]
[365417242,1749660654161,-490.0,0.00019506,2]
[365417243,1749660654172,-821.66,0.00019506,2]
[365417244,1749660654183,-3270.35,0.00019506,2]
[365417245,1749660654194,-511.03,0.00019506,2]
[365417246,1749660654206,-509.78,0.00019506,2]
[365417247,1749660654219,-490.0,0.00019506,2]
[365417248,1749660654229,-1000.0,0.00019506,2]
[365417249,1749660654241,-490.0,0.00019506,2]
[365417250,1749660654252,-517.59,0.00019506,2]
[365417251,1749660654263,-6106.1,0.00019506,2]
[365417252,1749660654275,-490.0,0.00019506,2]
[365417253,1749660654285,-919.46,0.00019506,2]
[365417254,1749660654300,-642.65,0.00019506,2]
[365417255,1749660654312,-490.0,0.00019506,2]
[365417256,1749660654322,-490.0,0.00019506,2]
[365417257,1749660654333,-490.0,0.00019506,2]
[365417258,1749660654344,-503.54,0.00019506,2]
[365417259,1749660654355,-1003.24,0.00019506,2]
[365417260,1749660654367,-490.0,0.00019506,2]
[365417261,1749660654378,-521.67,0.00019506,2]
[365417262,1749660654389,-589.8,0.00019506,2]
[365417263,1749660654400,-1345.03,0.00019506,2]
[365417264,1749660654411,-855.48,0.00019506,2]
[365417265,1749660654421,-834.67,0.00019506,2]
[365417266,1749660654432,-490.0,0.00019506,2]
[365417267,1749660654443,-490.0,0.00019506,2]
[365417268,1749660654453,-490.0,0.00019506,2]
[365417269,1749660654464,-790.05,0.00019506,2]
[365417270,1749660654474,-947.83,0.00019506,2]
[365417271,1749660654485,-512.7,0.00019506,2]
[365417272,1749660654496,-490.0,0.00019506,2]
[365417273,1749660654507,-908.62,0.00019506,2]
[365417274,1749660654518,-764.91,0.00019506,2]
[365417275,1749660654529,-490.0,0.00019506,2]
[365417276,1749660654539,-490.0,0.00019506,2]
[365417277,1749660654550,-490.0,0.00019506,2]
[365417278,1749660654561,-5930.08,0.00019506,2]
[365417279,1749660654573,-1579.69,0.00019506,2]
[365417280,1749660654584,-2917.28,0.00019506,2]
[365417281,1749660654600,-575.18,0.00019506,2]
[365417282,1749660654616,-490.0,0.00019506,2]
[365417283,1749660654631,-1193.27,0.00019506,2]
[365417284,1749660654643,-611.34,0.00019506,2]
[365417285,1749660654659,-490.89,0.00019506,2]
[365417286,1749660654673,-490.0,0.00019506,2]
[365417287,1749660654688,-490.0,0.00019506,2]
[365417288,1749660654703,-549.23,0.00019506,2]
[365417289,1749660654716,-490.0,0.00019506,2]
[365417290,1749660654728,-611.95,0.00019506,2]
[365417291,1749660654743,-936.29,0.00019506,2]
[365417292,1749660654757,-496.94,0.00019506,2]
[365417293,1749660654772,-490.0,0.00019506,2]
[365417294,1749660654787,-490.0,0.00019506,2]
[365417295,1749660654803,-1060.78,0.00019506,2]
[365417296,1749660654817,-662.42,0.00019506,2]
[365417297,1749660654832,-1513.94,0.00019506,2]
[365417298,1749660654847,-3883.39,0.00019506,2]
[365417299,1749660654860,-995.94,0.00019506,2]
[365417300,1749660654874,-725.66,0.00019506,2]
[365417301,1749660654888,-768.41,0.00019506,2]
[365417302,1749660654903,-490.0,0.00019506,2]
[365417303,1749660654917,-490.0,0.00019506,2]
[365417304,1749660654929,-772.21,0.00019506,2]
[365417305,1749660654940,-490.0,0.00019506,2]
[365417306,1749660654953,-490.0,0.00019506,2]
[365417307,1749660654969,-490.0,0.00019506,2]
[365417308,1749660654981,-662.53,0.00019506,2]
[365417309,1749660654992,-490.0,0.00019506,2]
[365417310,1749660655004,-1697.68,0.00019506,2]
[365417311,1749660655019,-537.47,0.00019506,2]
[365417312,1749660655031,-490.0,0.00019506,2]
[365417313,1749660655042,-969.69,0.00019506,2]
[365417314,1749660655054,-490.0,0.00019506,2]
[365417315,1749660655067,-601.27,0.00019506,2]
[365417316,1749660655079,-869.0,0.00019506,2]
[365417317,1749660655092,-490.0,0.00019506,2]
[365417318,1749660655104,-490.0,0.00019506,2]
[365417319,1749660655116,-1413.48,0.00019506,2]
[365417320,1749660655128,-839.04,0.00019506,2]
[365417321,1749660655141,-490.0,0.00019506,2]
[365417322,1749660655153,-490.0,0.00019506,2]
[365417323,1749660655165,-490.0,0.00019506,2]
[365417324,1749660655177,-1879.27,0.00019506,2]
[365417325,1749660655190,-490.0,0.00019506,2]
[365417326,1749660655202,-490.0,0.00019506,2]
[365417327,1749660655215,-490.0,0.00019506,2]
[365417328,1749660655228,-490.0,0.00019506,2]
[365417329,1749660655241,-490.0,0.00019506,2]
[365417330,1749660655253,-1505.54,0.00019506,2]
[365417331,1749660655265,-490.0,0.00019506,2]
[365417332,1749660655278,-604.78,0.00019506,2]
[365417333,1749660655291,-490.0,0.00019506,2]
[365417334,1749660655304,-626.47,0.00019506,2]
[365417335,1749660655316,-490.0,0.00019506,2]
[365417336,1749660655329,-490.0,0.00019506,2]
[365417337,1749660655343,-745.95,0.00019506,2]
[365417338,1749660655356,-490.0,0.00019506,2]
[365417339,1749660655369,-1372.55,0.00019506,2]
[365417340,1749660655383,-490.0,0.00019506,2]
[365417341,1749660655395,-490.0,0.00019506,2]
[365417342,1749660655408,-490.0,0.00019506,2]
[365417343,1749660655420,-562.59,0.00019506,2]
[365417344,1749660655432,-490.0,0.00019506,2]
[365417345,1749660655445,-490.0,0.00019506,2]
[365417346,1749660655457,-513.3,0.00019506,2]
[365417347,1749660655470,-490.0,0.00019506,2]
[365417348,1749660655483,-490.0,0.00019506,2]
[365417349,1749660655495,-1145.54,0.00019506,2]
[365417350,1749660655508,-762.07,0.00019506,2]
[365417351,1749660655520,-674.02,0.00019506,2]
[365417352,1749660655532,-490.0,0.00019506,2]
[365417353,1749660655548,-490.0,0.00019506,2]
[365417354,1749660655560,-1474.06,0.00019506,2]
[365417355,1749660655572,-695.03,0.00019506,2]
[365417356,1749660655584,-490.0,0.00019506,2]
[365417357,1749660655596,-490.0,0.00019506,2]
[365417358,1749660655608,-6389.33,0.00019506,2]
[365417359,1749660655621,-490.0,0.00019506,2]
[365417360,1749660655633,-657.39,0.00019506,2]
[365417361,1749660655646,-490.0,0.00019506,2]
[365417362,1749660655658,-490.0,0.00019506,2]
[365417363,1749660655670,-490.0,0.00019506,2]
[365417364,1749660655683,-490.0,0.00019506,2]
[365417365,1749660655696,-490.0,0.00019506,2]
[365417366,1749660655708,-490.0,0.00019506,2]
[365417367,1749660655721,-490.0,0.00019506,2]
[365417368,1749660655733,-494.95,0.00019506,2]
[365417369,1749660655746,-490.0,0.00019506,2]
[365417370,1749660655758,-490.0,0.00019506,2]
[365417371,1749660655770,-490.0,0.00019506,2]
[365417372,1749660655782,-805.04,0.00019506,2]
[365417373,1749660655795,-490.0,0.00019506,2]
[365417374,1749660655806,-273.23860911,0.00019506,2]
[365417375,1749660655818,-511.3,0.00019506,2]
[365417376,1749660655830,-579.91,0.00019506,2]
[365417377,1749660655842,-490.0,0.00019506,2]
[365417378,1749660655854,-490.0,0.00019506,2]
[365417379,1749660655867,-1490.41,0.00019506,2]
[365417380,1749660655879,-739.05,0.00019506,2]
[365417381,1749660655892,-766.16,0.00019506,2]
[365417382,1749660655904,-636.67,0.00019506,2]
[365417383,1749660655916,-1647.2,0.00019506,2]
[365417384,1749660655931,-709.31,0.00019506,2]
[365417385,1749660655943,-785.6,0.00019506,2]
[365417386,1749660655955,-503.8,0.00019506,2]
[365417387,1749660655968,-490.0,0.00019506,2]
[365417388,1749660655980,-490.0,0.00019506,2]
[365417389,1749660655992,-490.0,0.00019506,2]
[365417390,1749660656004,-4761.01,0.00019506,2]
[365417391,1749660656017,-490.0,0.00019506,2]
[365417392,1749660656029,-490.0,0.00019506,2]
[365417393,1749660656041,-490.0,0.00019506,2]
[365417394,1749660656054,-877.3,0.00019506,2]
[365417395,1749660656065,-490.0,0.00019506,2]
[365417396,1749660656077,-490.0,0.00019506,2]
[365417397,1749660656088,-2745.15,0.00019506,2]
[365417398,1749660656100,-490.0,0.00019506,2]
[365417399,1749660656112,-602.15,0.00019506,2]
[365417400,1749660656124,-490.0,0.00019506,2]
[365417401,1749660656136,-490.0,0.00019506,2]
[365417402,1749660656148,-490.0,0.00019506,2]
[365417403,1749660656160,-490.0,0.00019506,2]
[365417404,1749660656172,-490.0,0.00019506,2]
[365417405,1749660656185,-490.0,0.00019506,2]
[365417406,1749660656197,-576.77,0.00019506,2]
[365417407,1749660656208,-1679.04,0.00019506,2]
[365417408,1749660656221,-490.0,0.00019506,2]
[365417409,1749660656233,-1233.32,0.00019506,2]
[365417410,1749660656245,-490.0,0.00019506,2]
[365417411,1749660656257,-490.0,0.00019506,2]
[365417412,1749660656269,-652.29,0.00019506,2]
[365417413,1749660656282,-437.97666165,0.00019506,2]
[365417414,1749660656296,-490.0,0.00019506,2]
[365417415,1749660656308,-490.0,0.00019506,2]
[365417416,1749660656320,-492.14997281,0.00019506,2]
[365417417,1749660656332,-490.0,0.00019506,2]
[365417418,1749660656344,-952.05,0.00019506,2]
[365417419,1749660656356,-736.69,0.00019506,2]
[365417420,1749660656369,-490.0,0.00019506,2]
[365417421,1749660656381,-1039.64,0.00019506,2]
[365417422,1749660656392,-490.0,0.00019506,2]
[365417423,1749660656404,-2279.09,0.00019506,2]
[365417424,1749660656416,-490.0,0.00019506,2]
[365417425,1749660656428,-738.18,0.00019506,2]
[365417426,1749660656440,-490.0,0.00019506,2]
[365417427,1749660656452,-490.0,0.00019506,2]
[365417428,1749660656465,-490.0,0.00019506,2]
[365417429,1749660656477,-789.34,0.00019506,2]
[365417430,1749660656489,-490.0,0.00019506,2]
[365417431,1749660656500,-490.0,0.00019506,2]
[365417432,1749660656512,-490.0,0.00019506,2]
[365417433,1749660656524,-490.0,0.00019506,2]
[365417434,1749660656536,-490.0,0.00019506,2]
[365417435,1749660656548,-490.0,0.00019506,2]
[365417436,1749660656560,-871.69,0.00019506,2]
[365417437,1749660656571,-811.23,0.00019506,2]
[365417438,1749660656582,-490.0,0.00019506,2]
[365417439,1749660656594,-490.0,0.00019506,2]
[365417440,1749660656604,-490.0,0.00019506,2]
[365417441,1749660656616,-722.34,0.00019506,2]
[365417442,1749660656627,-1148.06,0.00019506,2]
[365417443,1749660656639,-490.0,0.00019506,2]
[365417444,1749660656652,-581.4,0.00019506,2]
[365417445,1749660656663,-490.0,0.00019506,2]
[365417446,1749660656674,-258.96218091,0.00019506,2]
[365417447,1749660656685,-490.0,0.00019506,2]
[365417448,1749660656695,-490.0,0.00019506,2]
[365417449,1749660656706,-1840.41,0.00019506,2]
[365417450,1749660656717,-490.0,0.00019506,2]
[365417451,1749660656728,-302.93,0.00019506,2]
[365417452,1749660656739,-242.19595232,0.00019506,2]
[365417453,1749660656750,-1680.0,0.00019534,2]
[365417454,1749660656761,-591.85709222,0.00019535,2]
[365417455,1749660656772,-211.0,0.0001959,2]
[365417456,1749660656782,-805.584294,0.00019599,2]
[365417457,1749660656794,-1000.0,0.000196,2]
[365417458,1749660656804,-591.85709222,0.00019626,2]
[365417459,1749660656816,-162.03089182,0.00019626,2]
[365417460,1749660656827,-183.0,0.00019644,2]
[365417461,1749660656839,-250.0,0.00019669,2]
[365417462,1749660656850,-2006.11,0.00019669,2]
[365417463,1749660656863,-4174.97,0.00019669,2]
[365417464,1749660656875,-833.29909032,0.0001967,3]
[365417465,1749660656886,-22485.70429105,0.0001967,3]
[365417466,1749660656898,-2006.11,0.0001967,2]
[365417467,1749660657231,-2006.11,0.0001967,2]
[365417468,1749660657261,-2006.11,0.0001967,2]
[365417469,1749660657277,-2006.11,0.0001967,2]
[365417470,1749660657286,-2006.11,0.0001967,2]
[365417471,1749660657298,-2006.11,0.0001967,2]
[365417472,1749660657307,-4174.97,0.0001967,2]
[365417473,1749660657316,-4174.97,0.0001967,2]
[365417474,1749660657325,-4174.97,0.0001967,2]
[365417475,1749660657335,-4174.97,0.0001967,2]
[365417476,1749660657344,-4174.97,0.0001967,2]
[365417477,1749660657353,-4174.97,0.0001967,2]
[365417478,1749660657363,-500.0,0.0001967,2]
[365417479,1749660657372,-1158443.7713609,0.00019671,3]
[365417480,1749660657382,-490.0,0.00019671,2]
[365417481,1749660657391,-348.6,0.00019671,2]
[365417482,1749660657400,-490.0,0.00019671,2]
[365417483,1749660657410,-490.0,0.00019671,2]
[365417484,1749660657419,-490.0,0.00019671,2]
[365417485,1749660657429,-490.0,0.00019671,2]
[365417486,1749660657438,-490.0,0.00019671,2]
[365417487,1749660657447,-490.0,0.00019671,2]
[365417488,1749660657456,-490.0,0.00019671,2]
[365417489,1749660657466,-490.0,0.00019671,2]
[365417490,1749660657475,-490.0,0.00019671,2]
[365417491,1749660657484,-490.0,0.00019671,2]
[365417492,1749660657494,-490.0,0.00019671,2]
[365417493,1749660657503,-490.0,0.00019671,2]
[365417494,1749660657511,-490.0,0.00019671,2]
[365417495,1749660657521,-490.0,0.00019671,2]
[365417496,1749660657530,-490.0,0.00019671,2]
[365417497,1749660657539,-490.0,0.00019671,2]
[365417498,1749660657548,-490.0,0.00019671,2]
[365417499,1749660657557,-490.0,0.00019671,2]
[365417500,1749660657566,-490.0,0.00019671,2]
[365417501,1749660657575,-182.88022512,0.00019671,2]
[365417502,1749660657584,-546.27906851,0.00019671,2]
[365417503,1749660657594,-490.0,0.00019671,2]
[365417504,1749660657604,-490.0,0.00019671,2]
[365417505,1749660657613,-490.0,0.00019671,2]
[365417506,1749660657622,-490.0,0.00019671,2]
[365417507,1749660657631,-490.0,0.00019671,2]